bitfinex/quotes_ETHUSD_20240730
["timestamp","ask_amount","ask_price","bid_price","bid_amount"]
[1722311963483,34.61489151,3326.8,3326.7,35.09910579]
[1722311963685,33.03660078,3326.8,3326.7,35.09910579]
[1722311963888,34.61524194,3326.8,3326.7,35.09910579]
[1722311964516,33.03660078,3326.8,3326.7,35.09910579]
[1722311974998,35.44131078,3326.8,3326.7,35.09910579]
[1722311976105,33.03660078,3326.8,3326.7,35.09910579]
[1722311977129,35.44131078,3326.8,3326.7,35.09910579]
[1722311980116,33.03660078,3326.8,3326.7,35.09910579]
[1722311980507,35.44131078,3326.8,3326.7,35.09910579]
[1722311990586,37.33703394,3326.8,3326.7,35.09910579]
[1722311992068,35.44131078,3326.8,3326.7,35.09910579]
[1722311992460,42.1854961,3326.8,3326.7,35.09910579]
[1722311993066,42.18553891,3326.8,3326.7,35.09910579]
[1722311996382,40.28982078,3326.8,3326.7,35.09910579]
[1722311997551,42.18553317,3326.8,3326.7,35.09910579]
[1722311998667,40.28982078,3326.8,3326.7,35.09910579]
[1722311998840,43.05149856,3326.8,3326.7,35.09910579]
[1722311999685,43.05135869,3326.8,3326.7,35.09910579]
[1722312000294,40.83982078,3326.8,3326.7,35.09910579]
[1722312003481,43.24453078,3326.8,3326.7,35.09910579]
[1722312003686,46.56588138,3326.8,3326.7,35.09910579]
[1722312004012,43.24453078,3326.8,3326.7,35.0]
[1722312004324,40.83982078,3326.8,3326.7,35.0]
[1722312004905,38.39602078,3326.8,3326.7,35.0]
[1722312005746,35.44131078,3326.8,3326.7,35.0]
[1722312005880,35.44131078,3326.8,3326.7,38.4349]
[1722312005881,34.93157815,3326.8,3326.7,38.4349]
[1722312006085,33.03660078,3326.8,3326.7,38.4349]
[1722312006386,33.03660078,3326.8,3326.7,37.3249]
[1722312007121,35.44131078,3326.8,3326.7,37.3249]
[1722312008082,35.44131078,3326.8,3326.7,35.0]
[1722312019805,33.03660078,3326.8,3326.7,35.0]
[1722312020826,35.44131078,3326.8,3326.7,35.0]
[1722312021453,35.01228341,3326.8,3326.7,35.0]
[1722312021879,39.31227447,3326.8,3326.7,35.0]
[1722312022226,43.93030341,3326.8,3326.7,35.0]
[1722312022432,46.14146465,3326.8,3326.7,35.0]
[1722312022646,2.4052,3326.2,3325.6,3.518]
[1722312022847,1.57951304,3326.0,3325.6,3.518]
[1722312023145,2.4052,3326.2,3325.9,35.0]
[1722312023345,1.57950237,3326.1,3325.9,35.0]
[1722312024069,2.40529,3326.0,3325.8,1.11]
[1722312024377,3.98454008,3326.0,3325.6,2.408]
[1722312024573,3.98454008,3326.0,3325.7,35.3518]
[1722312025262,2.40543,3325.8,3325.7,35.0]
[1722312025567,4.81086,3325.8,3325.7,35.0]
[1722312025865,2.40543,3325.8,3325.7,35.0]
[1722312026369,7.18726,3325.8,3325.7,35.0]
[1722312026531,8.20649601,3325.8,3325.7,35.0]
[1722312026730,2.40543,3325.8,3325.7,35.0]
[1722312026934,1.57782627,3325.8,3325.7,36.11]
[1722312027155,1.57782627,3326.1,3325.7,36.11]
[1722312027400,2.40508,3326.3,3326.0,1.11]
[1722312027401,1.57759991,3326.2,3326.0,1.11]
[1722312027552,3.98267991,3326.3,3326.0,1.11]
[1722312028292,2.40514,3326.2,3326.0,1.11]
[1722312028481,2.40521,3326.1,3325.8,1.11]
[1722312028794,2.40529,3326.0,3325.8,3.04901288]
[1722312029096,0.13618465,3325.9,3325.8,3.04901288]
[1722312029793,0.13618465,3325.9,3325.8,4.15901288]
[1722312030361,2.40524,3326.1,3325.8,4.15901288]
[1722312030586,0.13653233,3325.9,3325.8,4.15901288]
[1722312030989,2.40524,3326.1,3325.8,4.15901288]
[1722312031498,0.13653233,3326.0,3325.8,4.15901288]
[1722312037096,2.40507,3326.3,3325.8,4.2191424]
[1722312037298,0.13655907,3326.2,3325.8,4.2191424]
[1722312037503,2.40507,3326.3,3325.8,4.2191424]
[1722312037664,3.98186325,3326.3,3325.9,3.04901288]
[1722312037862,0.13655907,3326.2,3325.9,3.04901288]
[1722312038063,2.40507,3326.3,3325.9,3.04901288]
[1722312038263,0.13655907,3326.2,3325.9,3.04901288]
[1722312038465,2.40507,3326.3,3326.0,0.72080258]
[1722312038667,0.13655907,3326.2,3326.0,0.72080258]
[1722312038865,2.40507,3326.3,3326.0,0.72080258]
[1722312039061,0.13655907,3326.2,3326.1,35.0]
[1722312039276,2.40507,3326.3,3326.1,35.0]
[1722312039568,0.13655907,3326.2,3326.1,35.0]
[1722312039900,2.40507,3326.3,3326.1,35.0]
[1722312040202,0.13655907,3326.2,3326.1,35.0]
[1722312040608,2.40507,3326.3,3326.1,35.0]
[1722312040783,0.13655907,3326.2,3326.1,35.0]
[1722312041187,2.40507,3326.3,3326.1,35.0]
[1722312041481,0.13655907,3326.2,3326.1,35.0]
[1722312041670,2.40507,3326.3,3326.1,35.0]
[1722312041871,2.54169907,3326.2,3326.1,35.0]
[1722312043987,4.94683907,3326.2,3326.1,35.0]
[1722312044191,6.52369923,3326.2,3326.1,35.0]
[1722312044827,8.96829923,3326.2,3326.1,35.0]
[1722312045446,7.39143907,3326.2,3326.1,35.0]
[1722312045658,8.28826899,3326.2,3326.1,35.0]
[1722312049941,7.39143907,3326.2,3326.1,35.0]
[1722312063047,4.94683907,3326.2,3326.1,35.0]
[1722312066451,6.84075238,3326.2,3326.1,35.0]
[1722312067696,2.40572,3325.4,3325.1,2.3965]
[1722312067909,2.54225198,3325.3,3325.1,2.3965]
[1722312068191,2.54225198,3325.3,3325.2,35.0]
[1722312068407,4.12155111,3325.3,3325.2,35.0]
[1722312068896,2.54225198,3325.3,3325.2,35.0]
[1722312069561,4.121404,3325.3,3325.2,35.0]
[1722312070303,2.54225198,3325.3,3325.2,35.0]
[1722312071584,4.94809198,3325.3,3325.2,35.0]
[1722312071781,6.527244,3325.3,3325.2,35.0]
[1722312072158,4.94809198,3325.3,3325.2,35.0]
[1722312072514,6.52621011,3325.3,3325.2,35.0]
[1722312074687,2.40595,3325.1,3324.7,1.11]
[1722312074889,0.13577894,3325.0,3324.7,1.46584]
[1722312075327,0.13577894,3325.0,3324.8,35.0]
[1722312077124,2.54178894,3325.0,3324.8,35.0]
[1722312078527,2.54178894,3325.0,3324.8,36.05203612]
[1722312081511,2.5407083,3325.0,3324.8,36.05203612]
[1722312083796,0.1346983,3325.0,3324.8,36.05203612]
[1722312083959,0.1346983,3325.0,3324.9,1.11]
[1722312084263,2.40583,3325.3,3324.9,1.11]
[1722312084424,0.1346314,3325.0,3324.9,1.11]
[1722312084625,2.40587,3325.2,3324.9,36.11]
[1722312085151,0.1346314,3325.1,3324.9,36.11]
[1722312085329,2.40572,3325.4,3325.0,6.58651288]
[1722312085525,2.5404214,3325.3,3325.0,6.58651288]
[1722312085725,2.40587,3325.2,3325.0,6.58651288]
[1722312086176,0.1346314,3325.1,3325.0,6.58651288]
[1722312086472,0.1346314,3325.1,3325.0,4.15901288]
[1722312086628,2.5405714,3325.1,3324.9,35.0]
[1722312086829,2.40601,3325.0,3324.9,35.0]
[1722312087245,2.5407752,3325.0,3324.9,35.0]
[1722312090653,4.9467852,3325.0,3324.9,35.0]
[1722312091054,8.83056262,3325.0,3324.9,35.0]
[1722312091306,9.59843346,3325.0,3324.9,35.0]
[1722312091995,11.49056637,3325.0,3324.9,35.0]
[1722312092141,11.49050767,3325.0,3324.9,35.0]
[1722312092340,9.59843346,3325.0,3324.9,35.0]
[1722312092942,10.14843346,3325.0,3324.9,35.0]
[1722312093481,2.307,3324.9,3323.7,2.2928]
[1722312093682,2.40664,3324.2,3323.7,2.774198]
[1722312093885,2.40664,3324.2,3324.1,35.0]
[1722312094449,2.54087442,3324.2,3324.1,35.0]
[1722312095090,0.13423442,3324.2,3324.1,35.0]
[1722312095294,2.40646,3324.4,3324.1,38.04901288]
[1722312095765,2.40652,3324.3,3324.1,38.04901288]
[1722312096001,2.54072765,3324.3,3324.1,38.04901288]
[1722312097371,2.54072765,3324.3,3324.1,35.0]
[1722312097870,2.40659,3324.2,3324.1,35.0]
[1722312098066,2.54053445,3324.2,3324.1,35.0]
[1722312101898,0.13394445,3324.2,3324.1,35.0]
[1722312102216,2.40652,3324.3,3324.1,35.0]
[1722312102394,0.13389091,3324.2,3324.1,35.0]
[1722312102576,2.40652,3324.3,3324.1,35.0]
[1722312102780,0.13385297,3324.2,3324.1,35.0]
[1722312103272,2.40652,3324.3,3324.1,35.0]
[1722312103610,0.1338842,3324.2,3324.1,35.0]
[1722312103835,0.1338842,3324.2,3324.1,40.37871288]
[1722312104113,2.40638,3324.5,3324.1,40.37871288]
[1722312104278,2.40638,3324.5,3324.3,1.11]
[1722312104703,2.40638,3324.5,3324.4,35.0]
[1722312105210,2.40625,3324.7,3324.4,35.0]
[1722312105708,2.40631,3324.6,3324.4,35.0]
[1722312106111,2.40637,3324.5,3324.4,35.0]
[1722312108624,2.5403479,3324.5,3324.4,35.0]
[1722312122660,7.92379089,3324.5,3324.4,35.0]
[1722312122862,10.05086293,3324.5,3324.4,35.0]
[1722312123162,8.47379089,3324.5,3324.4,35.0]
[1722312123568,11.47627734,3324.5,3324.4,35.0]
[1722312123767,9.58379089,3324.5,3324.4,35.0]
[1722312124175,11.99016089,3324.5,3324.4,35.0]
[1722312124379,13.88308332,3324.5,3324.4,35.0]
[1722312124897,11.99016089,3324.5,3324.4,35.0]
[1722312125605,13.88308332,3324.5,3324.4,35.0]
[1722312126903,11.99016089,3324.5,3324.4,35.0]
[1722312127600,2.40677,3324.0,3323.6,3.5707]
[1722312127895,2.40677,3324.0,3323.7,0.35707]
[1722312128096,2.4066,3324.2,3323.7,0.35707]
[1722312128097,0.13390651,3323.9,3323.8,36.11]
[1722312128477,9.82646,3324.4,3323.8,36.11]
[1722312128478,11.40399772,3324.4,3323.8,38.3911]
[1722312128687,9.82645,3324.4,3324.1,1.11]
[1722312128906,2.54026587,3324.3,3324.1,1.11]
[1722312129104,2.54026587,3324.3,3323.9,1.11]
[1722312129310,2.54026587,3324.3,3324.2,35.0]
[1722312131194,4.11834066,3324.3,3324.2,35.0]
[1722312131604,2.54026587,3324.3,3324.2,35.0]
[1722312131911,4.11873651,3324.3,3324.2,35.0]
[1722312132298,2.54026587,3324.3,3324.2,35.0]
[1722312133146,4.11917786,3324.3,3324.2,35.0]
[1722312133642,2.54026587,3324.3,3324.2,35.0]
[1722312134246,4.94684587,3324.3,3324.2,35.0]
[1722312135315,6.84192131,3324.3,3324.2,35.0]
[1722312135519,4.94684587,3324.3,3324.2,35.0]
[1722312137247,2.54026587,3324.3,3324.2,35.0]
[1722312141460,2.53826259,3324.3,3324.2,35.0]
[1722312142585,6.84106162,3324.3,3324.2,35.0]
[1722312143434,6.84121807,3324.3,3324.2,35.0]
[1722312145265,2.53826259,3324.3,3324.2,35.0]
[1722312149788,4.4344683,3324.3,3324.2,35.0]
[1722312150174,4.43448503,3324.3,3324.2,35.0]
[1722312151287,2.53826259,3324.3,3324.2,35.0]
[1722312154884,4.94484259,3324.3,3324.2,35.0]
[1722312155387,6.84116564,3324.3,3324.2,35.0]
[1722312156586,4.94484259,3324.3,3324.2,35.0]
[1722312156785,6.84155817,3324.3,3324.2,35.0]
[1722312157353,4.94484259,3324.3,3324.2,35.0]
[1722312157987,6.84160787,3324.3,3324.2,35.0]
[1722312160227,6.84165632,3324.3,3324.2,35.0]
[1722312160623,6.84170046,3324.3,3324.2,35.0]
[1722312162387,6.84183877,3324.3,3324.2,35.0]
[1722312162791,4.94484259,3324.3,3324.2,35.0]
[1722312167550,2.40672,3324.1,3323.7,3.79337]
[1722312167832,1.58102651,3323.9,3323.7,3.79337]
[1722312168035,2.54034768,3324.0,3323.8,35.379337]
[1722312168236,2.40674,3324.0,3323.8,35.379337]
[1722312168406,0.13360768,3323.9,3323.8,35.379337]
[1722312170136,2.40674,3324.0,3323.8,35.379337]
[1722312170339,0.13360768,3323.9,3323.8,35.379337]
[1722312171146,1.71472536,3323.9,3323.8,35.379337]
[1722312171342,0.13360768,3323.9,3323.8,35.379337]
[1722312171839,2.54041768,3323.9,3323.8,35.379337]
[1722312176852,1.71455752,3323.9,3323.8,36.489337]
[1722312177149,0.13360768,3323.9,3323.8,43.631597]
[1722312177348,7.42,3324.5,3324.2,2.3285]
[1722312177530,0.12913153,3324.4,3324.3,1.11]
[1722312178042,1.58094984,3324.7,3324.3,38.51652]
[1722312178238,1.58094984,3324.7,3324.6,1.11]
[1722312178442,1.58094984,3324.8,3324.6,1.11]
[1722312179648,2.4061,3324.9,3324.6,1.11]
[1722312179849,1.57944256,3324.8,3324.6,1.11]
[1722312180553,1.57944256,3324.9,3324.6,1.11]
[1722312181152,1.57944256,3324.9,3324.6,1.461644]
[1722312181762,1.57944256,3324.9,3324.7,35.0]
[1722312182057,1.57869801,3324.9,3324.7,35.0]
[1722312182453,3.98478801,3324.9,3324.7,35.0]
[1722312182651,2.40615,3324.8,3324.7,35.0]
[1722312183334,3.98484801,3324.8,3324.7,35.0]
[1722312183735,2.5358186,3324.8,3324.7,35.0]
[1722312186046,0.1296686,3324.8,3324.7,35.0]
[1722312186247,0.1296686,3324.8,3324.7,38.04901288]
[1722312186448,1.57817488,3325.0,3324.7,38.04901288]
[1722312186449,1.57817488,3325.0,3324.7,40.52991288]
[1722312186655,0.1296283,3324.8,3324.7,37.4809]
[1722312186827,1.57817488,3325.0,3324.7,37.4809]
[1722312187028,0.1296283,3324.8,3324.7,37.4809]
[1722312187453,1.57780564,3325.0,3324.7,37.4809]
[1722312187648,0.1296283,3324.8,3324.7,37.4809]
[1722312187854,1.57780564,3325.0,3324.7,37.4809]
[1722312188054,0.1296283,3324.8,3324.7,37.4809]
[1722312188253,1.57780564,3325.0,3324.7,37.4809]
[1722312188467,0.1296283,3324.8,3324.7,37.4809]
[1722312188863,1.57746808,3325.0,3324.7,37.4809]
[1722312189077,0.1296283,3324.8,3324.7,37.4809]
[1722312189234,1.57746808,3325.0,3324.7,37.4809]
[1722312189563,0.1296283,3324.8,3324.7,37.4809]
[1722312190138,3.98347808,3325.0,3324.7,35.0]
[1722312190335,0.1296283,3324.9,3324.7,35.0]
[1722312191797,2.5357183,3324.9,3324.7,35.0]
[1722312195843,2.40615,3324.8,3324.7,35.0]
[1722312196283,4.94201333,3324.8,3324.7,35.0]
[1722312196495,6.51875607,3324.8,3324.7,35.0]
[1722312198173,7.95119553,3324.8,3324.7,35.0]
[1722312198469,9.89049894,3324.8,3324.7,35.0]
[1722312198839,11.78293242,3324.8,3324.7,35.0]
[1722312199170,9.89049894,3324.8,3324.7,35.0]
[1722312200054,12.18349894,3324.8,3324.7,35.0]
[1722312202975,2.40691,3323.8,3323.5,2.3272]
[1722312203178,2.53626162,3323.7,3323.5,2.3272]
[1722312203496,2.53626162,3323.7,3322.8,2.40754]
[1722312203497,2.40716,3323.5,3323.2,2.4358]
[1722312203689,2.40716,3323.5,3323.2,2.79038]
[1722312203987,2.40716,3323.5,3323.4,35.0]
[1722312204494,2.53640792,3323.5,3323.4,35.0]
[1722312207100,0.12924792,3323.5,3323.4,35.0]
[1722312213599,2.40695,3323.7,3323.4,35.0]
[1722312213799,2.40695,3323.7,3323.5,3.04901288]
[1722312213985,0.1288921,3323.6,3323.5,4.15901288]
[1722312214190,7.42,3324.1,3323.5,6.60888468]
[1722312214395,0.12888764,3324.0,3323.8,1.11]
[1722312214811,0.12888764,3324.0,3323.9,35.0]
[1722312216820,2.53561764,3324.0,3323.9,35.0]
[1722312220519,4.94234764,3324.0,3323.9,35.0]
[1722312220825,6.3721434,3324.0,3323.9,35.0]
[1722312221826,5.49234764,3324.0,3323.9,35.0]
[1722312224298,3.08561764,3324.0,3323.9,35.0]
[1722312226425,0.12888764,3324.0,3323.9,35.0]
[1722312226801,2.40653,3324.3,3323.9,35.0]
[1722312227135,0.12897268,3324.2,3323.9,35.0]
[1722312227626,0.12897268,3324.1,3323.9,35.0]
[1722312227832,2.40653,3324.3,3323.9,35.0]
[1722312228005,0.12897268,3324.0,3323.9,35.0]
[1722312228211,2.40653,3324.3,3323.9,35.0]
[1722312228413,0.12897268,3324.2,3323.9,35.0]
[1722312228712,2.40653,3324.3,3323.9,35.0]
[1722312228910,0.12897268,3324.1,3323.9,35.0]
[1722312229095,2.40653,3324.3,3323.9,35.0]
[1722312229294,0.12897268,3324.0,3323.9,35.0]
[1722312229495,2.40653,3324.3,3323.9,35.0]
[1722312229734,0.12897268,3324.0,3323.9,35.0]
[1722312229933,2.40653,3324.3,3323.9,38.04901288]
[1722312230143,0.12897268,3324.0,3323.9,35.0]
[1722312230637,2.40653,3324.3,3323.9,35.0]
[1722312230833,0.12897268,3324.2,3323.9,35.0]
[1722312231037,2.40653,3324.3,3323.9,37.4874]
[1722312231247,0.12897268,3324.2,3323.9,37.4874]
[1722312231415,2.40653,3324.3,3323.9,37.4874]
[1722312231595,0.12908459,3324.2,3323.9,37.4874]
[1722312231800,2.40653,3324.3,3323.9,37.4874]
[1722312232144,7.15296,3324.0,3323.9,35.0]
[1722312232545,6.45132938,3324.0,3323.9,35.0]
[1722312232713,2.46857116,3324.0,3323.9,35.0]
[1722312232912,4.87530116,3324.0,3323.9,35.0]
[1722312233436,7.28203116,3324.0,3323.9,35.0]
[1722312233641,8.85805938,3324.0,3323.9,35.0]
[1722312234351,7.28203116,3324.0,3323.9,35.0]
[1722312234520,8.85869562,3324.0,3323.9,35.0]
[1722312236251,7.28203116,3324.0,3323.9,35.0]
[1722312239223,7.93664473,3324.0,3323.9,35.0]
[1722312239457,9.8296828,3324.0,3323.9,35.0]
[1722312240749,7.93664473,3324.0,3323.9,35.0]
[1722312240947,9.8307819,3324.0,3323.9,35.0]
[1722312241150,9.8307937,3324.0,3323.9,35.0]
[1722312241352,8.48664473,3324.0,3323.9,35.0]
[1722312243708,7.38777302,3324.0,3323.9,35.0]
[1722312243982,5.49253116,3324.0,3323.9,35.0]
[1722312245176,7.38777302,3324.0,3323.9,35.0]
[1722312246382,5.49253116,3324.0,3323.9,35.0]
[1722312246669,7.38808853,3324.0,3323.9,35.0]
[1722312249845,7.3882119,3324.0,3323.9,35.0]
[1722312251584,2.53580116,3324.0,3323.9,37.3158]
[1722312251749,1.70863906,3324.0,3323.9,40.36481288]
[1722312252084,0.12907116,3324.0,3323.9,41.47481288]
[1722312252471,2.40659,3324.2,3323.9,41.47481288]
[1722312252653,3.9860879,3324.3,3324.0,3.04901288]
[1722312252853,2.40652,3324.3,3324.0,3.04901288]
[1722312253054,3.98581224,3324.3,3324.0,3.04901288]
[1722312253391,2.40652,3324.3,3324.0,3.04901288]
[1722312253746,1.57929224,3324.3,3324.0,3.10917531]
[1722312253950,1.57929224,3324.3,3324.1,3.04901288]
[1722312254255,3.98576224,3324.4,3324.1,3.04901288]
[1722312255784,3.98576224,3324.4,3323.9,3.4258]
[1722312256158,3.98576224,3324.4,3324.2,35.0]
[1722312256393,1.57884633,3324.3,3324.2,35.0]
[1722312256594,3.98531633,3324.4,3324.2,35.0]
[1722312256898,3.98523406,3324.4,3324.2,35.0]
[1722312257575,2.40652,3324.3,3324.2,35.0]
[1722312257921,3.98528406,3324.3,3324.2,35.0]
[1722312258111,2.40652,3324.3,3324.2,35.0]
[1722312258459,4.94222755,3324.3,3324.2,35.0]
[1722312261882,2.40667,3324.1,3323.6,2.2632]
[1722312262200,2.40667,3324.1,3323.7,0.33732]
[1722312262397,2.40674,3324.0,3323.8,35.0]
[1722312262573,2.53592755,3324.0,3323.8,35.0]
[1722312266897,2.40681,3323.9,3323.8,35.0]
[1722312267270,4.11470792,3323.9,3323.8,35.0]
[1722312268719,2.53601545,3323.9,3323.8,35.0]
[1722312273579,2.40688,3323.8,3322.9,2.4475]
[1722312273782,2.40729,3323.3,3322.9,2.4475]
[1722312274019,0.12910251,3323.2,3322.9,2.50768094]
[1722312274180,2.40729,3323.3,3323.0,35.0]
[1722312274395,0.12910251,3323.2,3323.0,38.04901288]
[1722312274718,2.40739,3323.1,3323.0,38.04901288]
[1722312275031,2.40739,3323.1,3323.0,35.0]
[1722312275241,2.53627314,3323.1,3323.0,35.0]
[1722312275598,9.8908878,3323.1,3323.0,35.0]
[1722312275709,11.26965314,3323.1,3323.0,35.0]
[1722312275908,12.58605341,3323.1,3323.0,35.0]
[1722312276416,12.58605341,3323.1,3321.9,1.11]
[1722312276417,2.40801,3322.3,3321.9,1.11]
[1722312276605,0.12852944,3322.2,3321.9,1.11]
[1722312276805,2.40801,3322.3,3321.7,3.0]
[1722312277001,0.12827864,3322.2,3321.8,1.1702019]
[1722312277199,0.12827864,3322.2,3322.1,35.0]
[1722312277200,2.40804,3322.2,3322.1,35.0]
[1722312277439,2.53631864,3322.2,3322.1,35.0]
[1722312278906,0.12827864,3322.2,3322.1,35.0]
[1722312279219,2.40804,3322.2,3322.1,35.0]
[1722312279417,4.94421976,3322.2,3322.1,35.0]
[1722312279814,7.22391976,3322.2,3322.1,35.0]
[1722312280021,7.94302788,3322.2,3322.1,35.0]
[1722312280905,10.35106788,3322.2,3322.1,35.0]
[1722312281105,10.90106788,3322.2,3322.1,35.0]
[1722312281605,8.49302788,3322.2,3322.1,35.0]
[1722312281805,9.60302788,3322.2,3322.1,35.0]
[1722312282740,2.40886,3321.1,3320.1,2.40956]
[1722312282942,2.40896,3321.0,3320.3,1.11]
[1722312283376,2.40896,3321.0,3320.9,35.0]
[1722312285138,9.8477,3321.6,3320.9,35.0]
[1722312285139,7.42,3321.6,3320.9,35.0]
[1722312285324,7.42,3321.6,3321.1,2.40881]
[1722312285654,7.42,3321.6,3321.2,0.240881]
[1722312285859,7.42,3321.6,3321.5,35.0]
[1722312286777,9.8279,3322.4,3321.5,35.0]
[1722312286942,9.8279,3322.4,3321.2,2.40875]
[1722312287139,2.40804,3322.2,3321.5,2.40854]
[1722312287345,2.40804,3322.2,3322.1,35.0]
[1722312287931,9.8279,3322.4,3322.1,35.0]
[1722312288161,7.42,3322.4,3322.1,35.0]
[1722312288367,12.41,3322.7,3322.2,0.06019611]
[1722312288368,2.40768,3322.7,3322.2,0.06019611]
[1722312288525,0.12314293,3322.3,3321.9,2.4082]
[1722312288729,2.40776,3322.6,3322.0,0.719963]
[1722312288960,2.40776,3322.6,3322.5,35.0]
[1722312290377,4.81552,3322.6,3322.5,35.0]
[1722312291975,4.81552,3322.6,3321.1,2.40883]
[1722312291976,2.40812,3322.1,3321.1,2.40883]
[1722312292378,2.40828,3321.9,3321.6,35.0]
[1722312292576,7.42,3322.3,3321.6,35.0]
[1722312292577,2.40838,3321.8,3321.6,35.0]
[1722312292805,7.42,3322.3,3321.6,35.0]
[1722312292806,2.4084,3321.7,3321.6,35.0]
[1722312293151,2.2646,3321.7,3320.4,2.40928]
[1722312293385,2.40884,3321.1,3320.4,2.40928]
[1722312293585,0.55,3321.6,3320.2,2.650386]
[1722312293586,2.95848,3321.6,3320.5,0.30114813]
[1722312293894,2.95848,3321.6,3321.0,35.0]
[1722312294802,2.4086,3321.5,3321.0,35.0]
[1722312295604,0.12094317,3321.4,3321.0,35.0]
[1722312296587,2.40867,3321.4,3321.0,35.0]
[1722312296965,0.12087567,3321.3,3321.0,35.0]
[1722312297483,2.40867,3321.4,3321.0,35.0]
[1722312297864,0.12087567,3321.3,3321.0,35.0]
[1722312298052,2.40867,3321.4,3321.0,35.0]
[1722312298259,0.12087567,3321.3,3321.0,35.0]
[1722312298582,2.40867,3321.4,3321.0,35.0]
[1722312298783,2.4087,3321.3,3321.0,35.0]
[1722312298985,2.52957567,3321.3,3321.0,35.0]
[1722312299190,2.4087,3321.3,3321.0,35.0]
[1722312299371,2.40884,3321.1,3321.0,35.0]
[1722312300073,2.40884,3321.1,3319.5,2.41]
[1722312300074,2.40927,3320.5,3319.5,2.41]
[1722312300275,0.12085317,3320.4,3319.8,2.40975]
[1722312300459,0.12085317,3320.4,3319.9,2.4097]
[1722312300651,2.40921,3320.6,3320.3,35.0]
[1722312300854,7.42,3320.8,3320.3,35.0]
[1722312301049,0.12077215,3320.7,3320.3,35.0]
[1722312301408,2.40899,3320.9,3320.4,0.06022779]
[1722312301992,0.12043448,3320.8,3320.5,0.06022525]
[1722312302184,0.12043448,3320.8,3320.3,2.3214]
[1722312302185,0.12043448,3320.8,3320.7,35.0]
[1722312302401,7.42,3321.2,3320.7,35.0]
[1722312302554,0.12015984,3320.8,3320.7,37.40913]
[1722312302753,7.42,3321.2,3320.7,37.40913]
[1722312302985,0.12015984,3320.8,3320.5,2.40927]
[1722312303216,7.42,3321.2,3320.6,2.650117]
[1722312303364,0.12015984,3320.7,3320.6,2.650117]
[1722312303574,7.42,3321.2,3320.6,2.650117]
[1722312304058,0.12022738,3321.1,3320.9,2.40893]
[1722312304460,0.12022738,3321.1,3321.0,35.0]
[1722312305213,2.40855,3321.5,3321.0,35.0]
[1722312305389,7.42,3321.8,3321.0,35.0]
[1722312305554,0.12022738,3321.4,3321.0,35.0]
[1722312305769,0.742,3321.7,3321.0,35.0]
[1722312306170,0.12022738,3321.6,3321.0,35.0]
[1722312306502,2.40882,3321.2,3321.0,35.0]
[1722312307020,0.12035794,3321.1,3321.0,35.0]
[1722312307325,2.40882,3321.2,3321.0,35.0]
[1722312307827,0.12035794,3321.1,3321.0,35.0]
[1722312308002,7.80833794,3321.1,3321.0,35.0]
[1722312308319,2.40934,3320.5,3319.7,2.40979]
[1722312308470,2.4094,3320.4,3319.7,2.40979]
[1722312308674,2.4094,3320.4,3319.7,2.891768]
[1722312308892,0.12029041,3320.3,3319.9,35.0]
[1722312309227,2.52971041,3320.3,3319.9,35.0]
[1722312309380,2.40936,3320.4,3319.9,35.0]
[1722312309706,0.12007428,3320.3,3319.9,35.0]
[1722312310122,2.40963,3320.0,3319.9,35.0]
[1722312310319,4.81926,3320.0,3319.9,35.0]
[1722312310472,4.93933428,3320.0,3319.9,35.0]
[1722312310669,0.12007428,3320.0,3319.9,35.0]
[1722312310972,2.40959,3320.1,3319.9,35.0]
[1722312311340,2.40948,3320.3,3319.9,35.0]
[1722312311517,2.4095,3320.2,3319.9,35.0]
[1722312311710,2.52940311,3320.2,3319.9,35.0]
[1722312312002,0.11990311,3320.2,3319.9,35.0]
[1722312312528,0.11990311,3320.1,3320.0,0.06023574]
[1722312312711,0.11990311,3320.1,3319.9,2.40969]
[1722312312712,0.11990311,3320.1,3319.9,0.0602286]
[1722312312912,2.40897,3321.0,3320.3,2.40937]
[1722312313204,2.40897,3321.0,3320.4,0.06022351]
[1722312313419,2.40898,3320.9,3320.4,0.06022351]
[1722312313797,2.40898,3320.9,3320.7,35.0]
[1722312315287,2.40905,3320.8,3320.7,35.0]
[1722312316198,4.8181,3320.8,3320.7,35.0]
[1722312317680,4.8181,3320.8,3319.7,2.40985]
[1722312317883,2.40972,3319.9,3319.2,2.5550031]
[1722312318124,2.40966,3320.0,3319.2,3.05153841]
[1722312318308,2.40971,3319.9,3319.8,35.0]
[1722312318512,2.52961314,3319.9,3319.8,35.0]
[1722312319298,2.41014,3319.3,3319.2,0.1448131]
[1722312319823,2.52967379,3319.3,3319.2,0.1448131]
[1722312320417,4.93981379,3319.3,3319.2,0.1448131]
[1722312321226,2.52967379,3319.3,3319.2,0.1448131]
[1722312321527,0.11953379,3319.3,3319.2,0.1448131]
[1722312321829,2.52967379,3319.3,3319.2,0.1448131]
[1722312322336,5.19278117,3319.3,3319.2,0.1448131]
[1722312322531,5.74278117,3319.3,3319.2,0.1448131]
[1722312322828,0.11953379,3319.3,3319.2,0.1448131]
[1722312323229,2.41007,3319.4,3319.2,0.1448131]
[1722312323427,2.52905646,3319.3,3319.2,0.1448131]
[1722312323728,0.11891646,3319.3,3319.2,0.1448131]
[1722312324129,2.41,3319.5,3319.2,0.1448131]
[1722312324297,0.11496719,3319.3,3319.2,0.1448131]
[1722312325127,2.40993,3319.6,3319.2,0.1448131]
[1722312325328,0.11490844,3319.3,3319.2,0.1448131]
[1722312325527,2.40993,3319.6,3319.2,0.1448131]
[1722312325732,0.11495363,3319.3,3319.2,0.1448131]